[Event "Titled Tuesday Blitz January 03 Early 2023"]
[White "Degenbaev, Aziz"]
[Black "Skliarov, Viktor"]
[WhiteFideId "13802640"]
[BlackFideId "14106736"]
[WhiteElo "2203"]
[BlackElo "2383"]
[Result "1/2-1/2"]
[Round "06"]
[TimeControl "180+2"]
[Date "2023.01.03"]
[WhiteClock "0:00:10"]
[BlackClock "0:00:07"]

1. e4 {[%clk 0:03:00]}  c5 {[%clk 0:02:54]} 2. Nf3 {[%clk 0:03:01]}  Nc6 {[%clk 0:02:53]} 3. Bb5 {[%clk 0:03:01]}  e6 {[%clk 0:02:53]} 4. O-O {[%clk 0:03:00]}  Nge7 {[%clk 0:02:53]} 5. d4 {[%clk 0:03:01]}  cxd4 {[%clk 0:02:53]} 6. Nxd4 {[%clk 0:03:01]}  Qb6 {[%clk 0:02:52]} 7. Bxc6 {[%clk 0:02:57]}  Nxc6 {[%clk 0:02:51]} 8. Nxc6 {[%clk 0:02:54]}  Qxc6 {[%clk 0:02:51]} 9. Nc3 {[%clk 0:02:53]}  a6 {[%clk 0:02:50]} 10. Be3 {[%clk 0:02:47]}  b5 {[%clk 0:02:50]} 11. a3 {[%clk 0:02:47]}  Bb7 {[%clk 0:02:50]} 12. f3 {[%clk 0:02:44]}  Be7 {[%clk 0:02:49]} 13. Qe1 {[%clk 0:02:35]}  O-O {[%clk 0:02:45]} 14. Qg3 {[%clk 0:02:36]}  Rfd8 {[%clk 0:02:41]} 15. Rad1 {[%clk 0:02:35]}  Rac8 {[%clk 0:02:37]} 16. Kh1 {[%clk 0:02:24]}  a5 {[%clk 0:02:32]} 17. Bh6 {[%clk 0:02:20]}  Bf8 {[%clk 0:02:31]} 18. Bg5 {[%clk 0:02:21]}  Re8 {[%clk 0:02:29]} 19. Rd2 {[%clk 0:02:01]}  b4 {[%clk 0:02:26]} 20. axb4 {[%clk 0:02:01]}  axb4 {[%clk 0:02:26]} 21. Ne2 {[%clk 0:02:00]}  Qb5 {[%clk 0:01:59]} 22. Rfd1 {[%clk 0:01:55]}  d5 {[%clk 0:01:59]} 23. Nd4 {[%clk 0:01:53]}  Qb6 {[%clk 0:01:42]} 24. e5 {[%clk 0:01:40]}  Rc4 {[%clk 0:01:40]} 25. Be3 {[%clk 0:01:21]}  Qc7 {[%clk 0:01:34]} 26. Nb5 {[%clk 0:01:13]}  Qd7 {[%clk 0:01:25]} 27. Nd4 {[%clk 0:00:48]}  Ra8 {[%clk 0:01:21]} 28. b3 {[%clk 0:00:46]}  Rc3 {[%clk 0:01:20]} 29. Bg5 {[%clk 0:00:42]}  Ra2 {[%clk 0:01:19]} 30. h4 {[%clk 0:00:40]}  Kh8 {[%clk 0:01:02]} 31. h5 {[%clk 0:00:39]}  h6 {[%clk 0:01:02]} 32. Bh4 {[%clk 0:00:36]}  Ba6 {[%clk 0:01:00]} 33. Qf4 {[%clk 0:00:35]}  Kg8 {[%clk 0:00:54]} 34. Qg4 {[%clk 0:00:29]}  Qc8 {[%clk 0:00:51]} 35. f4 {[%clk 0:00:25]}  Raxc2 {[%clk 0:00:41]} 36. Nxc2 {[%clk 0:00:22]}  Rxc2 {[%clk 0:00:41]} 37. Rxc2 {[%clk 0:00:15]}  Qxc2 {[%clk 0:00:42]} 38. Re1 {[%clk 0:00:16]}  Bd3 {[%clk 0:00:41]} 39. Qd1 {[%clk 0:00:15]}  Kh7 {[%clk 0:00:15]} 40. Qxc2 {[%clk 0:00:13]}  Bxc2 {[%clk 0:00:16]} 41. Rc1 {[%clk 0:00:14]}  g5 {[%clk 0:00:08]} 42. Rxc2 {[%clk 0:00:08]}  gxh4 {[%clk 0:00:08]} 43. Rc8 {[%clk 0:00:07]}  Kg7 {[%clk 0:00:07]} 44. Rb8 {[%clk 0:00:07]}  Bc5 {[%clk 0:00:06]} 45. Kh2 {[%clk 0:00:03]}  f5 {[%clk 0:00:06]} 46. g3 {[%clk 0:00:03]}  hxg3+ {[%clk 0:00:05]} 47. Kxg3 {[%clk 0:00:04]}  Kf7 {[%clk 0:00:05]} 48. Kf3 {[%clk 0:00:04]}  Kg7 {[%clk 0:00:03]} 49. Rb7+ {[%clk 0:00:05]}  Kg8 {[%clk 0:00:03]} 50. Rb5 {[%clk 0:00:05]}  Be7 {[%clk 0:00:03]} 51. Rb6 {[%clk 0:00:06]}  Kf7 {[%clk 0:00:03]} 52. Rb7 {[%clk 0:00:06]}  Kf8 {[%clk 0:00:03]} 53. Ke2 {[%clk 0:00:07]}  Kf7 {[%clk 0:00:04]} 54. Kd3 {[%clk 0:00:07]}  Kf8 {[%clk 0:00:04]} 55. Kd4 {[%clk 0:00:07]}  Kf7 {[%clk 0:00:05]} 56. Ra7 {[%clk 0:00:03]}  Kf8 {[%clk 0:00:05]} 57. Ra8+ {[%clk 0:00:03]}  Kf7 {[%clk 0:00:05]} 58. Rh8 {[%clk 0:00:02]}  Kg7 {[%clk 0:00:02]} 59. Re8 {[%clk 0:00:02]}  Kf7 {[%clk 0:00:02]} 60. Rh8 {[%clk 0:00:02]}  Kg7 {[%clk 0:00:03]} 61. Rb8 {[%clk 0:00:03]}  Kf7 {[%clk 0:00:03]} 62. Rb7 {[%clk 0:00:04]}  Kf8 {[%clk 0:00:04]} 63. Rb6 {[%clk 0:00:04]}  Kf7 {[%clk 0:00:04]} 64. Rc6 {[%clk 0:00:05]}  Bf8 {[%clk 0:00:05]} 65. Rc8 {[%clk 0:00:05]}  Be7 {[%clk 0:00:05]} 66. Rc7 {[%clk 0:00:06]}  Kf8 {[%clk 0:00:05]} 67. Rc6 {[%clk 0:00:06]}  Kf7 {[%clk 0:00:05]} 68. Ra6 {[%clk 0:00:07]}  Bf8 {[%clk 0:00:05]} 69. Ke3 {[%clk 0:00:08]}  Be7 {[%clk 0:00:05]} 70. Kd3 {[%clk 0:00:08]}  Bf8 {[%clk 0:00:05]} 71. Kd4 {[%clk 0:00:09]}  Be7 {[%clk 0:00:06]} 72. Ra7 {[%clk 0:00:09]}  Kf8 {[%clk 0:00:06]} 73. Ra8+ {[%clk 0:00:09]}  Kf7 {[%clk 0:00:07]} 74. Rh8 {[%clk 0:00:10]} 1/2-1/2


[Site "https://www.chess.com"]

[Event "Titled Tuesday Blitz January 03 Early 2023"]
[White "Piesik, Piotr"]
[Black "Arpita, Mukherjee"]
[WhiteFideId "1136194"]
[BlackFideId "5056403"]
[WhiteElo "2426"]
[BlackElo "2203"]
[Result "1-0"]
[Round "06"]
[TimeControl "180+2"]
[Date "2023.01.03"]
[WhiteClock "0:02:03"]
[BlackClock "0:01:04"]

1. Nf3 {[%clk 0:03:00]}  d5 {[%clk 0:02:52]} 2. g3 {[%clk 0:03:01]}  Nf6 {[%clk 0:02:52]} 3. Bg2 {[%clk 0:03:01]}  g6 {[%clk 0:02:52]} 4. O-O {[%clk 0:03:02]}  Bg7 {[%clk 0:02:52]} 5. d4 {[%clk 0:03:02]}  O-O {[%clk 0:02:52]} 6. c4 {[%clk 0:03:03]}  c6 {[%clk 0:02:51]} 7. Nc3 {[%clk 0:03:03]}  dxc4 {[%clk 0:02:33]} 8. a4 {[%clk 0:03:03]}  Nbd7 {[%clk 0:02:31]} 9. a5 {[%clk 0:03:02]}  Nd5 {[%clk 0:02:28]} 10. Qa4 {[%clk 0:02:59]}  b5 {[%clk 0:02:21]} 11. axb6 {[%clk 0:02:58]}  N7xb6 {[%clk 0:02:21]} 12. Qxc6 {[%clk 0:02:51]}  Bd7 {[%clk 0:02:19]} 13. Qc5 {[%clk 0:02:51]}  Rc8 {[%clk 0:02:11]} 14. Qa5 {[%clk 0:02:51]}  Bc6 {[%clk 0:02:06]} 15. Bd2 {[%clk 0:02:27]}  Nxc3 {[%clk 0:02:00]} 16. bxc3 {[%clk 0:02:26]}  Na4 {[%clk 0:01:52]} 17. Rxa4 {[%clk 0:02:22]}  Bxa4 {[%clk 0:01:51]} 18. Qxa4 {[%clk 0:02:22]}  Qb6 {[%clk 0:01:49]} 19. Ra1 {[%clk 0:02:17]}  Rc7 {[%clk 0:01:48]} 20. Bf4 {[%clk 0:02:08]}  Rb7 {[%clk 0:01:40]} 21. Ne5 {[%clk 0:02:08]}  Rc7 {[%clk 0:01:17]} 22. Nxc4 {[%clk 0:02:03]}  Rxc4 {[%clk 0:01:06]} 23. Qxc4 {[%clk 0:02:03]}  a5 {[%clk 0:01:04]} 24. h4 {[%clk 0:02:03]} 1-0


[Site "https://www.chess.com"]

[Event "Titled Tuesday Blitz January 03 Early 2023"]
[White "Andreev, Konstantin"]
[Black "Maltsevskaya, Aleksandra"]
[WhiteFideId "24239305"]
[BlackFideId "24174041"]
[WhiteElo "2195"]
[BlackElo "2390"]
[Result "0-1"]
[Round "06"]
[TimeControl "180+2"]
[Date "2023.01.03"]
[WhiteClock "0:00:05"]
[BlackClock "0:01:46"]

1. b3 {[%clk 0:03:00]}  Nf6 {[%clk 0:02:54]} 2. Bb2 {[%clk 0:03:01]}  g6 {[%clk 0:02:54]} 3. g3 {[%clk 0:03:01]}  Bg7 {[%clk 0:02:53]} 4. Bg2 {[%clk 0:03:02]}  O-O {[%clk 0:02:53]} 5. d3 {[%clk 0:03:03]}  d6 {[%clk 0:02:54]} 6. Nd2 {[%clk 0:03:03]}  Nbd7 {[%clk 0:02:55]} 7. e3 {[%clk 0:03:04]}  a5 {[%clk 0:02:55]} 8. a3 {[%clk 0:03:01]}  a4 {[%clk 0:02:55]} 9. b4 {[%clk 0:03:00]}  c5 {[%clk 0:02:56]} 10. bxc5 {[%clk 0:02:59]}  Nxc5 {[%clk 0:02:57]} 11. Ne2 {[%clk 0:02:59]}  Qb6 {[%clk 0:02:49]} 12. Rb1 {[%clk 0:02:58]}  Qc7 {[%clk 0:02:49]} 13. O-O {[%clk 0:02:57]}  Rb8 {[%clk 0:02:49]} 14. c4 {[%clk 0:02:51]}  b5 {[%clk 0:02:49]} 15. d4 {[%clk 0:02:45]}  Nd3 {[%clk 0:02:39]} 16. Bc3 {[%clk 0:02:43]}  bxc4 {[%clk 0:02:38]} 17. Rxb8 {[%clk 0:02:42]}  Qxb8 {[%clk 0:02:39]} 18. Nxc4 {[%clk 0:02:42]}  Ba6 {[%clk 0:02:35]} 19. Qxa4 {[%clk 0:02:40]}  Bb5 {[%clk 0:02:32]} 20. Qb3 {[%clk 0:02:37]}  Rc8 {[%clk 0:02:33]} 21. Na5 {[%clk 0:02:21]}  Ba6 {[%clk 0:02:20]} 22. Qxb8 {[%clk 0:02:09]}  Rxb8 {[%clk 0:02:21]} 23. Nc6 {[%clk 0:02:10]}  Rb3 {[%clk 0:02:20]} 24. Rd1 {[%clk 0:01:52]}  Nxf2 {[%clk 0:02:11]} 25. Kxf2 {[%clk 0:01:43]}  Ng4+ {[%clk 0:02:11]} 26. Kf3 {[%clk 0:01:01]}  Bxe2+ {[%clk 0:02:12]} 27. Kxe2 {[%clk 0:01:01]}  Rxc3 {[%clk 0:02:12]} 28. Rd3 {[%clk 0:00:59]}  Rc2+ {[%clk 0:01:57]} 29. Rd2 {[%clk 0:00:58]}  Rc1 {[%clk 0:01:58]} 30. h3 {[%clk 0:00:56]}  Nxe3 {[%clk 0:01:46]} 31. Kxe3 {[%clk 0:00:20]}  Bh6+ {[%clk 0:01:46]} 32. Kd3 {[%clk 0:00:20]}  Bxd2 {[%clk 0:01:47]} 33. Kxd2 {[%clk 0:00:21]}  Ra1 {[%clk 0:01:47]} 34. Nxe7+ {[%clk 0:00:05]}  Kf8 {[%clk 0:01:46]} 0-1


[Site "https://www.chess.com"]

[Event "Titled Tuesday Blitz January 03 Early 2023"]
[White "MKlose11"]
[Black "Buscar, Michael"]
[BlackFideId "2603616"]
[WhiteElo "2554"]
[BlackElo "2041"]
[Result "1-0"]
[Round "06"]
[TimeControl "180+2"]
[Date "2023.01.03"]
[WhiteClock "0:02:48"]
[BlackClock "0:02:30"]

1. e4 {[%clk 0:03:00]}  c5 {[%clk 0:02:47]} 2. Nc3 {[%clk 0:03:00]}  g6 {[%clk 0:02:44]} 3. g3 {[%clk 0:03:01]}  Bg7 {[%clk 0:02:44]} 4. Bg2 {[%clk 0:03:02]}  e6 {[%clk 0:02:45]} 5. d3 {[%clk 0:03:02]}  Ne7 {[%clk 0:02:46]} 6. Be3 {[%clk 0:03:03]}  b6 {[%clk 0:02:46]} 7. Qd2 {[%clk 0:03:03]}  Bb7 {[%clk 0:02:46]} 8. Bh6 {[%clk 0:03:03]}  O-O {[%clk 0:02:37]} 9. h4 {[%clk 0:03:02]}  f5 {[%clk 0:02:35]} 10. h5 {[%clk 0:03:02]}  Qe8 {[%clk 0:02:35]} 11. Bxg7 {[%clk 0:02:53]}  Kxg7 {[%clk 0:02:35]} 12. hxg6 {[%clk 0:02:53]}  hxg6 {[%clk 0:02:30]} 13. Qh6+ {[%clk 0:02:52]}  Kf6 {[%clk 0:02:31]} 14. e5+ {[%clk 0:02:47]}  Kxe5 {[%clk 0:02:30]} 15. Bxb7 {[%clk 0:02:48]} 1-0


[Site "https://www.chess.com"]

[Event "Titled Tuesday Blitz January 03 Early 2023"]
[White "Saravana, Krishnan P."]
[Black "Szyszylo, Rafal"]
[WhiteFideId "5018382"]
[BlackFideId "1109626"]
[WhiteElo "2284"]
[BlackElo "2091"]
[Result "1-0"]
[Round "06"]
[TimeControl "180+2"]
[Date "2023.01.03"]
[WhiteClock "0:00:20"]
[BlackClock "0:00:04"]

1. Nf3 {[%clk 0:03:00]}  d6 {[%clk 0:02:56]} 2. d4 {[%clk 0:02:57]}  g6 {[%clk 0:02:54]} 3. e4 {[%clk 0:02:56]}  Nf6 {[%clk 0:02:54]} 4. Nc3 {[%clk 0:02:56]}  Bg7 {[%clk 0:02:54]} 5. Be2 {[%clk 0:02:56]}  O-O {[%clk 0:02:53]} 6. O-O {[%clk 0:02:56]}  Bg4 {[%clk 0:02:53]} 7. h3 {[%clk 0:02:55]}  Bxf3 {[%clk 0:02:53]} 8. Bxf3 {[%clk 0:02:55]}  Nc6 {[%clk 0:02:53]} 9. Be3 {[%clk 0:02:55]}  e5 {[%clk 0:02:52]} 10. d5 {[%clk 0:02:55]}  Ne7 {[%clk 0:02:49]} 11. Qd2 {[%clk 0:02:51]}  Nd7 {[%clk 0:02:45]} 12. Be2 {[%clk 0:02:32]}  f5 {[%clk 0:02:37]} 13. Bg5 {[%clk 0:02:30]}  f4 {[%clk 0:02:34]} 14. Bg4 {[%clk 0:02:29]}  Bf6 {[%clk 0:02:21]} 15. Bh6 {[%clk 0:02:27]}  Bg7 {[%clk 0:02:21]} 16. Be6+ {[%clk 0:02:23]}  Kh8 {[%clk 0:02:20]} 17. Bg5 {[%clk 0:02:16]}  Bf6 {[%clk 0:02:18]} 18. h4 {[%clk 0:02:16]}  Ng8 {[%clk 0:02:05]} 19. Bxf6+ {[%clk 0:02:04]}  Ngxf6 {[%clk 0:02:02]} 20. g3 {[%clk 0:01:59]}  Nc5 {[%clk 0:01:53]} 21. gxf4 {[%clk 0:01:54]}  Nfxe4 {[%clk 0:01:45]} 22. Nxe4 {[%clk 0:01:41]}  Nxe4 {[%clk 0:01:46]} 23. Qe3 {[%clk 0:01:34]}  Rxf4 {[%clk 0:01:46]} 24. f3 {[%clk 0:01:32]}  Qxh4 {[%clk 0:01:45]} 25. fxe4 {[%clk 0:01:31]}  Rxe4 {[%clk 0:01:43]} 26. Qf3 {[%clk 0:01:24]}  Rf4 {[%clk 0:01:38]} 27. Qg2 {[%clk 0:01:21]}  Raf8 {[%clk 0:01:33]} 28. Rxf4 {[%clk 0:01:20]}  Rxf4 {[%clk 0:01:23]} 29. Rf1 {[%clk 0:01:18]}  Kg7 {[%clk 0:01:13]} 30. Rxf4 {[%clk 0:01:16]}  Qxf4 {[%clk 0:01:12]} 31. Qf2 {[%clk 0:01:16]}  g5 {[%clk 0:00:58]} 32. Kg2 {[%clk 0:01:01]}  h5 {[%clk 0:00:54]} 33. Qxa7 {[%clk 0:01:00]}  Qe4+ {[%clk 0:00:46]} 34. Kf1 {[%clk 0:00:56]}  Qxc2 {[%clk 0:00:41]} 35. Qf2 {[%clk 0:00:46]}  Qg6 {[%clk 0:00:27]} 36. a4 {[%clk 0:00:44]}  g4 {[%clk 0:00:25]} 37. a5 {[%clk 0:00:39]}  Qd3+ {[%clk 0:00:17]} 38. Qe2 {[%clk 0:00:36]}  Qh3+ {[%clk 0:00:14]} 39. Ke1 {[%clk 0:00:31]}  Qg3+ {[%clk 0:00:11]} 40. Qf2 {[%clk 0:00:30]}  Qb3 {[%clk 0:00:05]} 41. Qf7+ {[%clk 0:00:29]}  Kh6 {[%clk 0:00:06]} 42. Qf6+ {[%clk 0:00:26]}  Kh7 {[%clk 0:00:05]} 43. Bf5+ {[%clk 0:00:26]}  Kg8 {[%clk 0:00:05]} 44. Qd8+ {[%clk 0:00:20]}  Kg7 {[%clk 0:00:04]} 45. Qe7+ {[%clk 0:00:20]} 1-0


[Site "https://www.chess.com"]

[Event "Titled Tuesday Blitz January 03 Early 2023"]
[White "Melian, Juan Sebastian"]
[Black "Topalov, Aleksandar"]
[WhiteFideId "3706575"]
[BlackFideId "925659"]
[WhiteElo "2293"]
[BlackElo "2233"]
[Result "1-0"]
[Round "06"]
[TimeControl "180+2"]
[Date "2023.01.03"]
[WhiteClock "0:00:41"]
[BlackClock "0:00:23"]

1. e4 {[%clk 0:02:58]}  e6 {[%clk 0:02:59]} 2. Nc3 {[%clk 0:02:57]}  d5 {[%clk 0:02:59]} 3. d4 {[%clk 0:02:57]}  Bb4 {[%clk 0:02:58]} 4. Ne2 {[%clk 0:02:53]}  Nf6 {[%clk 0:02:58]} 5. Bg5 {[%clk 0:02:52]}  h6 {[%clk 0:02:55]} 6. Bxf6 {[%clk 0:02:50]}  Qxf6 {[%clk 0:02:55]} 7. a3 {[%clk 0:02:48]}  Bxc3+ {[%clk 0:02:49]} 8. Nxc3 {[%clk 0:02:49]}  O-O {[%clk 0:02:49]} 9. Qd2 {[%clk 0:02:40]}  Nc6 {[%clk 0:02:38]} 10. O-O-O {[%clk 0:02:36]}  Rd8 {[%clk 0:01:57]} 11. e5 {[%clk 0:02:25]}  Qe7 {[%clk 0:01:57]} 12. f4 {[%clk 0:02:24]}  f5 {[%clk 0:01:53]} 13. exf6 {[%clk 0:02:19]}  Qxf6 {[%clk 0:01:51]} 14. Bb5 {[%clk 0:02:20]}  Ne7 {[%clk 0:01:47]} 15. Rhe1 {[%clk 0:02:14]}  c6 {[%clk 0:01:45]} 16. Bd3 {[%clk 0:02:12]}  Rf8 {[%clk 0:01:45]} 17. g3 {[%clk 0:02:11]}  Bd7 {[%clk 0:01:45]} 18. Re5 {[%clk 0:02:06]}  b6 {[%clk 0:01:43]} 19. Ne2 {[%clk 0:01:55]}  c5 {[%clk 0:01:40]} 20. c3 {[%clk 0:01:54]}  Rac8 {[%clk 0:01:34]} 21. Kb1 {[%clk 0:01:53]}  Nc6 {[%clk 0:01:21]} 22. Re3 {[%clk 0:01:24]}  cxd4 {[%clk 0:01:20]} 23. Nxd4 {[%clk 0:01:15]}  Nxd4 {[%clk 0:01:17]} 24. cxd4 {[%clk 0:01:16]}  Kh8 {[%clk 0:01:14]} 25. Re5 {[%clk 0:01:14]}  Rc7 {[%clk 0:01:00]} 26. Rc1 {[%clk 0:01:01]}  Rfc8 {[%clk 0:00:58]} 27. Rxc7 {[%clk 0:01:00]}  Rxc7 {[%clk 0:00:58]} 28. Bc2 {[%clk 0:01:01]}  Be8 {[%clk 0:00:45]} 29. f5 {[%clk 0:00:49]}  exf5 {[%clk 0:00:23]} 30. Rxe8+ {[%clk 0:00:41]} 1-0


[Site "https://www.chess.com"]

[Event "Titled Tuesday Blitz January 03 Early 2023"]
[White "Goltseva, Ekaterina"]
[Black "Pandey Srishti"]
[WhiteFideId "24173770"]
[BlackFideId "35093290"]
[WhiteElo "2283"]
[BlackElo "2188"]
[Result "1/2-1/2"]
[Round "06"]
[TimeControl "180+2"]
[Date "2023.01.03"]
[WhiteClock "0:00:36"]
[BlackClock "0:01:25"]

1. c4 {[%clk 0:03:00]}  e5 {[%clk 0:02:55]} 2. Nc3 {[%clk 0:02:58]}  Nf6 {[%clk 0:02:54]} 3. g3 {[%clk 0:02:57]}  d5 {[%clk 0:02:55]} 4. cxd5 {[%clk 0:02:57]}  Nxd5 {[%clk 0:02:55]} 5. Bg2 {[%clk 0:02:58]}  Nb6 {[%clk 0:02:55]} 6. Nf3 {[%clk 0:02:58]}  Nc6 {[%clk 0:02:55]} 7. O-O {[%clk 0:02:58]}  Be7 {[%clk 0:02:54]} 8. d3 {[%clk 0:02:59]}  O-O {[%clk 0:02:55]} 9. a3 {[%clk 0:02:59]}  Be6 {[%clk 0:02:55]} 10. b4 {[%clk 0:02:59]}  f6 {[%clk 0:02:46]} 11. Bb2 {[%clk 0:02:58]}  a5 {[%clk 0:02:44]} 12. b5 {[%clk 0:02:56]}  Nd4 {[%clk 0:02:44]} 13. Nxd4 {[%clk 0:02:54]}  exd4 {[%clk 0:02:44]} 14. Na4 {[%clk 0:02:49]}  Bd5 {[%clk 0:02:27]} 15. Nxb6 {[%clk 0:02:42]}  cxb6 {[%clk 0:02:23]} 16. a4 {[%clk 0:02:27]}  Bxg2 {[%clk 0:02:21]} 17. Kxg2 {[%clk 0:02:28]}  Rc8 {[%clk 0:02:18]} 18. Qb3+ {[%clk 0:02:26]}  Kh8 {[%clk 0:02:17]} 19. Rac1 {[%clk 0:02:26]}  Bc5 {[%clk 0:02:15]} 20. Rc2 {[%clk 0:02:12]}  Qd6 {[%clk 0:02:14]} 21. h4 {[%clk 0:02:05]}  h6 {[%clk 0:02:08]} 22. Rd1 {[%clk 0:01:51]}  Rce8 {[%clk 0:02:05]} 23. Bc1 {[%clk 0:01:41]}  f5 {[%clk 0:01:58]} 24. Bf4 {[%clk 0:01:38]}  Qf6 {[%clk 0:01:58]} 25. Qd5 {[%clk 0:01:32]}  Rf7 {[%clk 0:01:45]} 26. h5 {[%clk 0:01:20]}  Rfe7 {[%clk 0:01:37]} 27. Qf3 {[%clk 0:01:16]}  Qf7 {[%clk 0:01:35]} 28. Rb1 {[%clk 0:01:00]}  Kh7 {[%clk 0:01:33]} 29. Rbb2 {[%clk 0:00:59]}  Ba3 {[%clk 0:01:30]} 30. Rb1 {[%clk 0:00:58]}  Bc5 {[%clk 0:01:30]} 31. Kf1 {[%clk 0:00:56]}  Kg8 {[%clk 0:01:26]} 32. Kg2 {[%clk 0:00:36]}  Kh7 {[%clk 0:01:25]} 1/2-1/2


[Site "https://www.chess.com"]

[Event "Titled Tuesday Blitz January 03 Early 2023"]
[White "aidenzhouu"]
[Black "Sielecki, Christof"]
[BlackFideId "4620437"]
[WhiteElo "2382"]
[BlackElo "2419"]
[Result "0-1"]
[Round "06"]
[TimeControl "180+2"]
[Date "2023.01.03"]
[WhiteClock "0:00:06"]
[BlackClock "0:00:08"]

1. d4 {[%clk 0:03:00]}  Nf6 {[%clk 0:02:59]} 2. c4 {[%clk 0:03:01]}  g6 {[%clk 0:02:59]} 3. Nc3 {[%clk 0:03:01]}  Bg7 {[%clk 0:02:59]} 4. e4 {[%clk 0:03:01]}  d6 {[%clk 0:02:59]} 5. Nf3 {[%clk 0:03:02]}  O-O {[%clk 0:02:59]} 6. Be2 {[%clk 0:03:02]}  e5 {[%clk 0:02:58]} 7. dxe5 {[%clk 0:03:03]}  dxe5 {[%clk 0:02:53]} 8. Qxd8 {[%clk 0:03:03]}  Rxd8 {[%clk 0:02:53]} 9. Bg5 {[%clk 0:03:04]}  Re8 {[%clk 0:02:40]} 10. Nd5 {[%clk 0:03:04]}  Nxd5 {[%clk 0:02:40]} 11. cxd5 {[%clk 0:03:05]}  c6 {[%clk 0:02:41]} 12. Bc4 {[%clk 0:03:06]}  cxd5 {[%clk 0:02:38]} 13. Bxd5 {[%clk 0:03:07]}  Nd7 {[%clk 0:02:37]} 14. Nd2 {[%clk 0:03:07]}  Nc5 {[%clk 0:02:35]} 15. O-O-O {[%clk 0:03:08]}  Be6 {[%clk 0:02:34]} 16. Bxe6 {[%clk 0:03:07]}  Nxe6 {[%clk 0:02:34]} 17. Be3 {[%clk 0:03:01]}  Rec8+ {[%clk 0:02:33]} 18. Kb1 {[%clk 0:03:00]}  f5 {[%clk 0:02:32]} 19. f3 {[%clk 0:02:56]}  Kf7 {[%clk 0:02:32]} 20. Rc1 {[%clk 0:02:44]}  h5 {[%clk 0:02:15]} 21. Nc4 {[%clk 0:02:39]}  Ke7 {[%clk 0:02:10]} 22. Rhd1 {[%clk 0:02:35]}  Rc6 {[%clk 0:01:47]} 23. Na5 {[%clk 0:02:20]}  Rxc1+ {[%clk 0:01:45]} 24. Rxc1 {[%clk 0:02:21]}  b6 {[%clk 0:01:42]} 25. Nc6+ {[%clk 0:02:19]}  Kd6 {[%clk 0:01:38]} 26. Nb4 {[%clk 0:02:15]}  Nd4 {[%clk 0:01:32]} 27. Bxd4 {[%clk 0:02:13]}  exd4 {[%clk 0:01:32]} 28. Rc6+ {[%clk 0:02:13]}  Ke7 {[%clk 0:01:16]} 29. Rxg6 {[%clk 0:02:09]}  Kf7 {[%clk 0:01:12]} 30. exf5 {[%clk 0:02:05]}  Re8 {[%clk 0:01:12]} 31. Re6 {[%clk 0:02:05]}  Rd8 {[%clk 0:01:03]} 32. Kc2 {[%clk 0:02:00]}  Rc8+ {[%clk 0:00:40]} 33. Kd2 {[%clk 0:01:50]}  h4 {[%clk 0:00:34]} 34. Nc6 {[%clk 0:01:42]}  Rh8 {[%clk 0:00:20]} 35. Rd6 {[%clk 0:01:14]}  Bh6+ {[%clk 0:00:19]} 36. Kd3 {[%clk 0:01:13]}  Bf4 {[%clk 0:00:19]} 37. Rd7+ {[%clk 0:01:07]}  Kf6 {[%clk 0:00:19]} 38. h3 {[%clk 0:01:07]}  Rg8 {[%clk 0:00:18]} 39. Nxd4 {[%clk 0:01:04]}  Rxg2 {[%clk 0:00:17]} 40. Ne2 {[%clk 0:01:00]}  Be5 {[%clk 0:00:16]} 41. b3 {[%clk 0:00:55]}  Kxf5 {[%clk 0:00:16]} 42. Rxa7 {[%clk 0:00:50]}  Rh2 {[%clk 0:00:14]} 43. Nd4+ {[%clk 0:00:28]}  Bxd4 {[%clk 0:00:14]} 44. Kxd4 {[%clk 0:00:29]}  Rxh3 {[%clk 0:00:14]} 45. Rh7 {[%clk 0:00:20]}  Kg6 {[%clk 0:00:14]} 46. Rh8 {[%clk 0:00:20]}  Kg7 {[%clk 0:00:14]} 47. Rh5 {[%clk 0:00:20]}  Kg6 {[%clk 0:00:14]} 48. Rb5 {[%clk 0:00:11]}  Rxf3 {[%clk 0:00:13]} 49. Rxb6+ {[%clk 0:00:12]}  Kg5 {[%clk 0:00:14]} 50. Ke4 {[%clk 0:00:12]}  Rf2 {[%clk 0:00:11]} 51. a4 {[%clk 0:00:05]}  h3 {[%clk 0:00:12]} 52. Rb5+ {[%clk 0:00:02]}  Kg4 {[%clk 0:00:11]} 53. Rb8 {[%clk 0:00:02]}  Rb2 {[%clk 0:00:10]} 54. Rg8+ {[%clk 0:00:02]}  Kh4 {[%clk 0:00:10]} 55. Kf4 {[%clk 0:00:02]}  Rf2+ {[%clk 0:00:07]} 56. Ke3 {[%clk 0:00:03]}  Rb2 {[%clk 0:00:07]} 57. Rh8+ {[%clk 0:00:03]}  Kg3 {[%clk 0:00:07]} 58. Rg8+ {[%clk 0:00:04]}  Kh2 {[%clk 0:00:07]} 59. Rh8 {[%clk 0:00:04]}  Rxb3+ {[%clk 0:00:07]} 60. Kd4 {[%clk 0:00:05]}  Rb4+ {[%clk 0:00:08]} 61. Ke3 {[%clk 0:00:05]}  Rxa4 {[%clk 0:00:08]} 62. Kf3 {[%clk 0:00:06]}  Ra3+ {[%clk 0:00:09]} 63. Kg4 {[%clk 0:00:06]}  Rg3+ {[%clk 0:00:08]} 64. Kf4 {[%clk 0:00:06]}  Kg2 {[%clk 0:00:08]} 65. Rb8 {[%clk 0:00:06]}  Rf3+ {[%clk 0:00:09]} 66. Kg4 {[%clk 0:00:06]}  h2 {[%clk 0:00:08]} 67. Rb2+ {[%clk 0:00:06]}  Rf2 {[%clk 0:00:08]} 0-1


[Site "https://www.chess.com"]

[Event "Titled Tuesday Blitz January 03 Early 2023"]
[White "Mei, Austin"]
[Black "Dinu, Dumitru-Daniel"]
[WhiteFideId "30948479"]
[BlackFideId "1208403"]
[WhiteElo "2218"]
[BlackElo "2203"]
[Result "0-1"]
[Round "06"]
[TimeControl "180+2"]
[Date "2023.01.03"]
[WhiteClock "0:00:26"]
[BlackClock "0:00:15"]

1. e4 {[%clk 0:03:00]}  d5 {[%clk 0:02:59]} 2. exd5 {[%clk 0:03:01]}  Nf6 {[%clk 0:02:58]} 3. d4 {[%clk 0:02:59]}  Bg4 {[%clk 0:02:57]} 4. f3 {[%clk 0:02:59]}  Bf5 {[%clk 0:02:56]} 5. c4 {[%clk 0:02:50]}  e6 {[%clk 0:02:56]} 6. g4 {[%clk 0:02:40]}  Bg6 {[%clk 0:02:55]} 7. Nc3 {[%clk 0:02:37]}  exd5 {[%clk 0:02:54]} 8. g5 {[%clk 0:02:37]}  Nfd7 {[%clk 0:02:54]} 9. Nxd5 {[%clk 0:02:36]}  Bd6 {[%clk 0:02:53]} 10. Qe2+ {[%clk 0:02:32]}  Kf8 {[%clk 0:02:52]} 11. c5 {[%clk 0:02:22]}  c6 {[%clk 0:02:46]} 12. cxd6 {[%clk 0:02:20]}  cxd5 {[%clk 0:02:46]} 13. Bf4 {[%clk 0:02:20]}  Nc6 {[%clk 0:02:45]} 14. Qd2 {[%clk 0:02:15]}  Qb6 {[%clk 0:02:36]} 15. Rd1 {[%clk 0:01:59]}  Re8+ {[%clk 0:02:23]} 16. Kf2 {[%clk 0:02:00]}  f5 {[%clk 0:01:09]} 17. h4 {[%clk 0:01:51]}  Bh5 {[%clk 0:01:03]} 18. Ne2 {[%clk 0:01:46]}  Nde5 {[%clk 0:00:49]} 19. Ng3 {[%clk 0:01:34]}  Nxf3 {[%clk 0:00:29]} 20. Nxh5 {[%clk 0:01:17]}  Nxd2 {[%clk 0:00:28]} 21. Rxd2 {[%clk 0:01:12]}  Nxd4 {[%clk 0:00:23]} 22. Kg3 {[%clk 0:01:09]}  Ne6 {[%clk 0:00:19]} 23. Bg2 {[%clk 0:00:49]}  Nxf4 {[%clk 0:00:19]} 24. Kxf4 {[%clk 0:00:49]}  Qe3+ {[%clk 0:00:19]} 25. Kxf5 {[%clk 0:00:48]}  g6+ {[%clk 0:00:18]} 26. Kg4 {[%clk 0:00:44]}  gxh5+ {[%clk 0:00:18]} 27. Kxh5 {[%clk 0:00:44]}  Qxd2 {[%clk 0:00:18]} 28. Rf1+ {[%clk 0:00:34]}  Kg7 {[%clk 0:00:18]} 29. Bf3 {[%clk 0:00:27]}  Ref8 {[%clk 0:00:15]} 30. d7 {[%clk 0:00:26]}  Rxf3 {[%clk 0:00:14]} 31. Rxf3 {[%clk 0:00:26]}  Qe2 {[%clk 0:00:15]} 0-1


[Site "https://www.chess.com"]